[Event "Titled Tuesday Blitz June 6 Late 2023"]
[White "Roienko, Artur"]
[Black "Principe, Gerson"]
[WhiteFideId "14136732"]
[BlackFideId "3804550"]
[WhiteElo "2062"]
[BlackElo "2229"]
[Result "0-1"]
[Round "3"]
[TimeControl "180+2"]
[Date "2023.06.07"]
[WhiteClock "0:00:15"]
[BlackClock "0:00:21"]
[Board "93"]

1. e4 {[%clk 0:03:00]}  c5 {[%clk 0:02:58]} 2. c3 {[%clk 0:03:00]}  d5 {[%clk 0:02:55]} 3. exd5 {[%clk 0:03:01]}  Qxd5 {[%clk 0:02:56]} 4. Nf3 {[%clk 0:03:01]}  e6 {[%clk 0:02:56]} 5. Na3 {[%clk 0:03:01]}  Nf6 {[%clk 0:02:52]} 6. Bc4 {[%clk 0:03:00]}  Qd8 {[%clk 0:02:52]} 7. d4 {[%clk 0:03:01]}  cxd4 {[%clk 0:02:52]} 8. Nb5 {[%clk 0:03:01]}  a6 {[%clk 0:02:51]} 9. Nbxd4 {[%clk 0:03:00]}  Be7 {[%clk 0:02:51]} 10. O-O {[%clk 0:02:57]}  O-O {[%clk 0:02:51]} 11. Qe2 {[%clk 0:02:57]}  Qc7 {[%clk 0:02:43]} 12. Rd1 {[%clk 0:02:52]}  Nc6 {[%clk 0:02:36]} 13. Bg5 {[%clk 0:02:42]}  h6 {[%clk 0:02:33]} 14. Bh4 {[%clk 0:02:40]}  Nxd4 {[%clk 0:02:31]} 15. Nxd4 {[%clk 0:02:39]}  Re8 {[%clk 0:02:27]} 16. Bb3 {[%clk 0:02:25]}  Bd7 {[%clk 0:02:27]} 17. Bg3 {[%clk 0:02:22]}  Qb6 {[%clk 0:02:27]} 18. Be5 {[%clk 0:02:12]}  Rad8 {[%clk 0:02:17]} 19. h3 {[%clk 0:02:07]}  Bc6 {[%clk 0:02:12]} 20. Rd2 {[%clk 0:01:53]}  Bd5 {[%clk 0:02:11]} 21. Bc2 {[%clk 0:01:50]}  Rc8 {[%clk 0:01:59]} 22. Qd3 {[%clk 0:01:36]}  Be4 {[%clk 0:01:57]} 23. Qe2 {[%clk 0:01:32]}  Bxc2 {[%clk 0:01:57]} 24. Rxc2 {[%clk 0:01:32]}  Nd7 {[%clk 0:01:51]} 25. Bg3 {[%clk 0:01:16]}  Bf6 {[%clk 0:01:50]} 26. Rd2 {[%clk 0:01:16]}  Nc5 {[%clk 0:01:46]} 27. Rad1 {[%clk 0:01:13]}  Na4 {[%clk 0:01:42]} 28. Be5 {[%clk 0:01:08]}  Bxe5 {[%clk 0:01:38]} 29. Qxe5 {[%clk 0:01:09]}  Rc5 {[%clk 0:01:38]} 30. Qe3 {[%clk 0:01:01]}  Rd5 {[%clk 0:01:32]} 31. b3 {[%clk 0:00:43]}  Nc5 {[%clk 0:01:32]} 32. c4 {[%clk 0:00:43]}  Rdd8 {[%clk 0:01:26]} 33. Nf3 {[%clk 0:00:43]}  Rxd2 {[%clk 0:00:47]} 34. Rxd2 {[%clk 0:00:44]}  Qc7 {[%clk 0:00:44]} 35. Qd4 {[%clk 0:00:42]}  Rc8 {[%clk 0:00:44]} 36. Ne5 {[%clk 0:00:35]}  f6 {[%clk 0:00:41]} 37. Ng6 {[%clk 0:00:35]}  Qf7 {[%clk 0:00:38]} 38. Nh4 {[%clk 0:00:30]}  g5 {[%clk 0:00:38]} 39. Nf3 {[%clk 0:00:29]}  Kg7 {[%clk 0:00:38]} 40. Nh2 {[%clk 0:00:27]}  Rc7 {[%clk 0:00:36]} 41. Qe3 {[%clk 0:00:22]}  b6 {[%clk 0:00:33]} 42. Ng4 {[%clk 0:00:21]}  a5 {[%clk 0:00:33]} 43. Rd6 {[%clk 0:00:18]}  Rd7 {[%clk 0:00:30]} 44. Rxb6 {[%clk 0:00:17]}  Rd1+ {[%clk 0:00:31]} 45. Kh2 {[%clk 0:00:17]}  Qc7+ {[%clk 0:00:31]} 46. g3 {[%clk 0:00:18]}  Qxb6 {[%clk 0:00:31]} 47. Qc3 {[%clk 0:00:16]}  e5 {[%clk 0:00:30]} 48. Ne3 {[%clk 0:00:15]}  Rd7 {[%clk 0:00:24]} 49. Qc2 {[%clk 0:00:16]}  Nd3 {[%clk 0:00:21]} 50. Nd5 {[%clk 0:00:15]}  Qxf2+ {[%clk 0:00:21]} 0-1


[Site "https://www.chess.com"]

[Event "Titled Tuesday Blitz June 6 Late 2023"]
[White "Bitoon, Richard"]
[Black "Kaplan, Avi Harrison"]
[WhiteFideId "5201110"]
[BlackFideId "30934559"]
[WhiteElo "2374"]
[BlackElo "1983"]
[Result "1-0"]
[Round "3"]
[TimeControl "180+2"]
[Date "2023.06.07"]
[WhiteClock "0:00:53"]
[BlackClock "0:00:07"]
[Board "94"]

1. e4 {[%clk 0:03:00]}  b6 {[%clk 0:03:00]} 2. d4 {[%clk 0:03:01]}  Bb7 {[%clk 0:03:01]} 3. Nc3 {[%clk 0:03:01]}  e6 {[%clk 0:02:59]} 4. Bd3 {[%clk 0:02:55]}  f5 {[%clk 0:02:59]} 5. Qe2 {[%clk 0:02:51]}  Bb4 {[%clk 0:02:53]} 6. Bd2 {[%clk 0:02:48]}  Nf6 {[%clk 0:02:52]} 7. f3 {[%clk 0:02:46]}  Bxc3 {[%clk 0:02:48]} 8. Bxc3 {[%clk 0:02:43]}  fxe4 {[%clk 0:02:49]} 9. fxe4 {[%clk 0:02:43]}  Nxe4 {[%clk 0:02:48]} 10. O-O-O {[%clk 0:02:40]}  Nxc3 {[%clk 0:02:45]} 11. Qh5+ {[%clk 0:02:38]}  Ke7 {[%clk 0:02:26]} 12. Qg5+ {[%clk 0:02:33]}  Ke8 {[%clk 0:02:17]} 13. Qh5+ {[%clk 0:02:33]}  Ke7 {[%clk 0:02:17]} 14. bxc3 {[%clk 0:02:33]}  g6 {[%clk 0:02:00]} 15. Qh3 {[%clk 0:02:08]}  Nc6 {[%clk 0:01:35]} 16. Nf3 {[%clk 0:02:07]}  Qf8 {[%clk 0:01:32]} 17. Rhf1 {[%clk 0:02:05]}  Kd8 {[%clk 0:01:30]} 18. Ng5 {[%clk 0:02:01]}  Qa3+ {[%clk 0:01:30]} 19. Kd2 {[%clk 0:02:00]}  Kc8 {[%clk 0:01:27]} 20. Rf7 {[%clk 0:01:52]}  a6 {[%clk 0:01:20]} 21. Rxd7 {[%clk 0:01:52]}  Kb8 {[%clk 0:01:14]} 22. Nxe6 {[%clk 0:01:17]}  Bc8 {[%clk 0:01:11]} 23. Qg3 {[%clk 0:01:17]}  Ra7 {[%clk 0:00:26]} 24. Rxc7 {[%clk 0:01:16]}  Bxe6 {[%clk 0:00:25]} 25. Rxh7+ {[%clk 0:01:16]}  Ka8 {[%clk 0:00:18]} 26. Rxh8+ {[%clk 0:01:16]}  Kb7 {[%clk 0:00:18]} 27. Be4 {[%clk 0:01:13]}  a5 {[%clk 0:00:16]} 28. Rb8+ {[%clk 0:01:09]}  Ka6 {[%clk 0:00:16]} 29. Bxc6 {[%clk 0:01:09]}  Bc4 {[%clk 0:00:15]} 30. Qg4 {[%clk 0:00:58]}  a4 {[%clk 0:00:11]} 31. Qc8+ {[%clk 0:00:52]}  Ka5 {[%clk 0:00:12]} 32. Ra8 {[%clk 0:00:53]}  Rxa8 {[%clk 0:00:10]} 33. Qxa8+ {[%clk 0:00:53]}  Ba6 {[%clk 0:00:10]} 34. Qg8 {[%clk 0:00:49]}  Qd6 {[%clk 0:00:07]} 35. Qd5+ {[%clk 0:00:49]}  Qxd5 {[%clk 0:00:07]} 36. Bxd5 {[%clk 0:00:49]}  g5 {[%clk 0:00:07]} 37. g3 {[%clk 0:00:49]}  g4 {[%clk 0:00:08]} 38. Be6 {[%clk 0:00:50]}  a3 {[%clk 0:00:08]} 39. Bxg4 {[%clk 0:00:50]}  Ka4 {[%clk 0:00:08]} 40. Bd7+ {[%clk 0:00:50]}  b5 {[%clk 0:00:08]} 41. Be6 {[%clk 0:00:50]}  Bb7 {[%clk 0:00:08]} 42. Bb3+ {[%clk 0:00:51]}  Ka5 {[%clk 0:00:08]} 43. h4 {[%clk 0:00:51]}  b4 {[%clk 0:00:09]} 44. cxb4+ {[%clk 0:00:51]}  Kxb4 {[%clk 0:00:09]} 45. c3+ {[%clk 0:00:52]}  Kb5 {[%clk 0:00:09]} 46. Rf1 {[%clk 0:00:52]}  Kb6 {[%clk 0:00:09]} 47. Rf5 {[%clk 0:00:51]}  Bc8 {[%clk 0:00:08]} 48. Rf6+ {[%clk 0:00:51]}  Kb5 {[%clk 0:00:08]} 49. h5 {[%clk 0:00:51]}  Ka5 {[%clk 0:00:08]} 50. h6 {[%clk 0:00:51]}  Bb7 {[%clk 0:00:07]} 51. h7 {[%clk 0:00:51]}  Kb5 {[%clk 0:00:07]} 52. h8=Q {[%clk 0:00:52]}  Ka5 {[%clk 0:00:07]} 53. Qd8+ {[%clk 0:00:52]}  Kb5 {[%clk 0:00:07]} 54. Qb6# {[%clk 0:00:53]} 1-0


[Site "https://www.chess.com"]

[Event "Titled Tuesday Blitz June 6 Late 2023"]
[White "Cilek, Bora"]
[Black "Can, Melih Kaan"]
[WhiteFideId "34502165"]
[BlackFideId "6317383"]
[WhiteElo "2108"]
[BlackElo "2010"]
[Result "1-0"]
[Round "3"]
[TimeControl "180+2"]
[Date "2023.06.07"]
[WhiteClock "0:00:48"]
[BlackClock "0:00:43"]
[Board "99"]

1. e4 {[%clk 0:03:00]}  c5 {[%clk 0:02:59]} 2. c3 {[%clk 0:03:00]}  d5 {[%clk 0:02:58]} 3. exd5 {[%clk 0:03:00]}  Qxd5 {[%clk 0:02:59]} 4. Nf3 {[%clk 0:03:01]}  Nf6 {[%clk 0:02:57]} 5. d4 {[%clk 0:03:01]}  Bg4 {[%clk 0:02:57]} 6. Be2 {[%clk 0:03:01]}  e6 {[%clk 0:02:57]} 7. Be3 {[%clk 0:02:56]}  cxd4 {[%clk 0:02:57]} 8. cxd4 {[%clk 0:02:57]}  Nc6 {[%clk 0:02:57]} 9. Nc3 {[%clk 0:02:57]}  Qd6 {[%clk 0:02:58]} 10. O-O {[%clk 0:02:56]}  Be7 {[%clk 0:02:58]} 11. h3 {[%clk 0:02:56]}  Bh5 {[%clk 0:02:58]} 12. a3 {[%clk 0:02:56]}  O-O {[%clk 0:02:59]} 13. Qb3 {[%clk 0:02:57]}  b6 {[%clk 0:02:52]} 14. Rad1 {[%clk 0:02:54]}  Rfd8 {[%clk 0:02:52]} 15. Rfe1 {[%clk 0:02:44]}  Rac8 {[%clk 0:02:47]} 16. Rd2 {[%clk 0:02:28]}  Na5 {[%clk 0:02:44]} 17. Qb5 {[%clk 0:02:26]}  Nd5 {[%clk 0:02:36]} 18. Nxd5 {[%clk 0:02:17]}  Qxd5 {[%clk 0:02:34]} 19. Qa4 {[%clk 0:02:07]}  Nc4 {[%clk 0:02:25]} 20. Bxc4 {[%clk 0:02:01]}  Rxc4 {[%clk 0:02:22]} 21. Qxa7 {[%clk 0:01:59]}  Bxf3 {[%clk 0:02:21]} 22. gxf3 {[%clk 0:01:47]}  Bd6 {[%clk 0:02:05]} 23. Kg2 {[%clk 0:01:34]}  Qf5 {[%clk 0:01:45]} 24. Qxb6 {[%clk 0:01:28]}  Bc7 {[%clk 0:01:44]} 25. Qb7 {[%clk 0:01:25]}  Qg6+ {[%clk 0:01:42]} 26. Kf1 {[%clk 0:01:22]}  Qf5 {[%clk 0:01:38]} 27. b3 {[%clk 0:01:17]}  Rc3 {[%clk 0:01:30]} 28. h4 {[%clk 0:00:58]}  Rb8 {[%clk 0:01:27]} 29. Qe4 {[%clk 0:00:58]}  Qh3+ {[%clk 0:01:25]} 30. Ke2 {[%clk 0:00:58]}  Rcxb3 {[%clk 0:01:22]} 31. Rc1 {[%clk 0:00:57]}  Bd6 {[%clk 0:01:15]} 32. d5 {[%clk 0:00:56]}  e5 {[%clk 0:00:58]} 33. Qg4 {[%clk 0:00:54]}  Qxg4 {[%clk 0:00:50]} 34. fxg4 {[%clk 0:00:55]}  Rxa3 {[%clk 0:00:48]} 35. Rc6 {[%clk 0:00:49]}  Rd8 {[%clk 0:00:43]} 36. Bb6 {[%clk 0:00:48]} 1-0


[Site "https://www.chess.com"]

[Event "Titled Tuesday Blitz June 6 Late 2023"]
[White "Ansh M Shah"]
[Black "Mendez Fortes, Eduardo Jesus"]
[WhiteFideId "25033379"]
[BlackFideId "3502376"]
[WhiteElo "2084"]
[BlackElo "2307"]
[Result "0-1"]
[Round "3"]
[TimeControl "180+2"]
[Date "2023.06.07"]
[WhiteClock "0:00:01"]
[BlackClock "0:00:14"]
[Board "100"]

1. d4 {[%clk 0:02:55]}  Nf6 {[%clk 0:02:59]} 2. c4 {[%clk 0:02:56]}  e6 {[%clk 0:02:59]} 3. g3 {[%clk 0:02:45]}  d5 {[%clk 0:02:59]} 4. Bg2 {[%clk 0:02:46]}  dxc4 {[%clk 0:02:59]} 5. Nf3 {[%clk 0:02:47]}  a6 {[%clk 0:02:58]} 6. O-O {[%clk 0:02:48]}  Nc6 {[%clk 0:02:58]} 7. Nc3 {[%clk 0:02:48]}  Rb8 {[%clk 0:02:58]} 8. e4 {[%clk 0:02:48]}  Be7 {[%clk 0:02:58]} 9. d5 {[%clk 0:02:46]}  Nb4 {[%clk 0:02:58]} 10. Ne5 {[%clk 0:02:33]}  exd5 {[%clk 0:02:57]} 11. exd5 {[%clk 0:02:33]}  Bf5 {[%clk 0:02:55]} 12. a3 {[%clk 0:01:44]}  Nd3 {[%clk 0:02:31]} 13. Nxc4 {[%clk 0:01:44]}  O-O {[%clk 0:02:27]} 14. Be3 {[%clk 0:01:38]}  b5 {[%clk 0:01:50]} 15. Na5 {[%clk 0:01:33]}  Nxb2 {[%clk 0:01:44]} 16. Qb3 {[%clk 0:01:28]}  Nc4 {[%clk 0:01:37]} 17. Nxc4 {[%clk 0:00:56]}  bxc4 {[%clk 0:01:37]} 18. Qxc4 {[%clk 0:00:57]}  Bd6 {[%clk 0:01:14]} 19. Qxa6 {[%clk 0:00:53]}  Ra8 {[%clk 0:01:11]} 20. Qc4 {[%clk 0:00:50]}  Re8 {[%clk 0:01:05]} 21. Nb5 {[%clk 0:00:47]}  Be5 {[%clk 0:00:59]} 22. Bd4 {[%clk 0:00:44]}  Bxd4 {[%clk 0:00:55]} 23. Nxd4 {[%clk 0:00:45]}  Bd7 {[%clk 0:00:51]} 24. Nc6 {[%clk 0:00:23]}  Bxc6 {[%clk 0:00:38]} 25. Qxc6 {[%clk 0:00:24]}  Rb8 {[%clk 0:00:36]} 26. Rac1 {[%clk 0:00:16]}  Re7 {[%clk 0:00:33]} 27. Rfd1 {[%clk 0:00:16]}  h6 {[%clk 0:00:22]} 28. d6 {[%clk 0:00:15]}  cxd6 {[%clk 0:00:22]} 29. Qxd6 {[%clk 0:00:15]}  Rd7 {[%clk 0:00:22]} 30. Qxb8 {[%clk 0:00:05]}  Qxb8 {[%clk 0:00:21]} 31. Rxd7 {[%clk 0:00:05]}  Nxd7 {[%clk 0:00:22]} 32. Bh3 {[%clk 0:00:06]}  Nb6 {[%clk 0:00:20]} 33. a4 {[%clk 0:00:05]}  Qa7 {[%clk 0:00:20]} 34. Rb1 {[%clk 0:00:04]}  g6 {[%clk 0:00:19]} 35. Ra1 {[%clk 0:00:02]}  Qa5 {[%clk 0:00:18]} 36. Bf1 {[%clk 0:00:02]}  Nxa4 {[%clk 0:00:17]} 37. Be2 {[%clk 0:00:02]}  Qb4 {[%clk 0:00:18]} 38. Bd1 {[%clk 0:00:02]}  Nc3 {[%clk 0:00:18]} 39. Bf3 {[%clk 0:00:01]}  Qb2 {[%clk 0:00:18]} 40. Rf1 {[%clk 0:00:02]}  Kg7 {[%clk 0:00:18]} 41. Kg2 {[%clk 0:00:02]}  Qd2 {[%clk 0:00:19]} 42. h4 {[%clk 0:00:02]}  g5 {[%clk 0:00:19]} 43. hxg5 {[%clk 0:00:02]}  hxg5 {[%clk 0:00:20]} 44. Ra1 {[%clk 0:00:02]}  f5 {[%clk 0:00:20]} 45. Ra7+ {[%clk 0:00:02]}  Kf6 {[%clk 0:00:20]} 46. Ra6+ {[%clk 0:00:02]}  Ke7 {[%clk 0:00:20]} 47. Ra7+ {[%clk 0:00:03]}  Kd8 {[%clk 0:00:20]} 48. Ra8+ {[%clk 0:00:03]}  Kc7 {[%clk 0:00:20]} 49. Ra7+ {[%clk 0:00:02]}  Kb6 {[%clk 0:00:21]} 50. Rb7+ {[%clk 0:00:03]}  Ka6 {[%clk 0:00:21]} 51. Rf7 {[%clk 0:00:02]}  g4 {[%clk 0:00:21]} 52. Rf6+ {[%clk 0:00:02]}  Ka7 {[%clk 0:00:20]} 53. Rf7+ {[%clk 0:00:02]}  Kb8 {[%clk 0:00:20]} 54. Rf8+ {[%clk 0:00:02]}  Kc7 {[%clk 0:00:21]} 55. Rf7+ {[%clk 0:00:01]}  Kd8 {[%clk 0:00:21]} 56. Bb7 {[%clk 0:00:02]}  Qd3 {[%clk 0:00:17]} 57. Bc6 {[%clk 0:00:01]}  Ne4 {[%clk 0:00:14]} 0-1


[Site "https://www.chess.com"]

[Event "Titled Tuesday Blitz June 6 Late 2023"]
[White "Wadsworth, Matthew J"]
[Black "Zenin, Dmitry"]
[WhiteFideId "415804"]
[BlackFideId "4127897"]
[WhiteElo "2347"]
[BlackElo "2215"]
[Result "1-0"]
[Round "3"]
[TimeControl "180+2"]
[Date "2023.06.07"]
[WhiteClock "0:02:03"]
[BlackClock "0:01:43"]
[Board "103"]

1. c4 {[%clk 0:03:00]}  g6 {[%clk 0:02:59]} 2. g3 {[%clk 0:03:00]}  c5 {[%clk 0:02:59]} 3. Bg2 {[%clk 0:03:00]}  Bg7 {[%clk 0:02:59]} 4. Nc3 {[%clk 0:02:59]}  Nc6 {[%clk 0:03:00]} 5. Nf3 {[%clk 0:02:59]}  e6 {[%clk 0:02:59]} 6. d4 {[%clk 0:02:58]}  cxd4 {[%clk 0:02:59]} 7. Nb5 {[%clk 0:02:59]}  Nge7 {[%clk 0:02:59]} 8. Nd6+ {[%clk 0:02:38]}  Kf8 {[%clk 0:02:59]} 9. O-O {[%clk 0:02:38]}  Nf5 {[%clk 0:02:56]} 10. Bg5 {[%clk 0:02:29]}  Qb6 {[%clk 0:02:43]} 11. Nxf5 {[%clk 0:02:24]}  gxf5 {[%clk 0:02:41]} 12. Qc2 {[%clk 0:02:18]}  d6 {[%clk 0:02:38]} 13. a3 {[%clk 0:02:16]}  e5 {[%clk 0:02:06]} 14. Nh4 {[%clk 0:02:14]}  e4 {[%clk 0:02:05]} 15. Bh3 {[%clk 0:02:11]}  d3 {[%clk 0:01:44]} 16. exd3 {[%clk 0:02:09]}  Nd4 {[%clk 0:01:44]} 17. Qd1 {[%clk 0:02:04]}  Nf3+ {[%clk 0:01:43]} 18. Nxf3 {[%clk 0:02:03]} 1-0


[Site "https://www.chess.com"]

[Event "Titled Tuesday Blitz June 6 Late 2023"]
[White "Chabris, Christopher"]
[Black "Makaraci, Tunahan"]
[WhiteFideId "2005263"]
[BlackFideId "6356559"]
[WhiteElo "2392"]
[BlackElo "2160"]
[Result "0-1"]
[Round "3"]
[TimeControl "180+2"]
[Date "2023.06.07"]
[WhiteClock "0:00:04"]
[BlackClock "0:00:19"]
[Board "104"]

1. e4 {[%clk 0:03:00]}  Nf6 {[%clk 0:02:59]} 2. e5 {[%clk 0:03:00]}  Nd5 {[%clk 0:02:59]} 3. d4 {[%clk 0:03:00]}  d6 {[%clk 0:03:00]} 4. Nf3 {[%clk 0:03:00]}  dxe5 {[%clk 0:02:59]} 5. Nxe5 {[%clk 0:03:00]}  c6 {[%clk 0:03:00]} 6. Bc4 {[%clk 0:02:59]}  Bf5 {[%clk 0:02:59]} 7. Qf3 {[%clk 0:02:54]}  e6 {[%clk 0:02:58]} 8. c3 {[%clk 0:02:50]}  Nd7 {[%clk 0:02:58]} 9. Nxd7 {[%clk 0:02:42]}  Qxd7 {[%clk 0:02:58]} 10. O-O {[%clk 0:02:41]}  Bd6 {[%clk 0:02:57]} 11. Bg5 {[%clk 0:02:33]}  O-O {[%clk 0:02:56]} 12. Nd2 {[%clk 0:02:31]}  h6 {[%clk 0:02:55]} 13. Bh4 {[%clk 0:02:29]}  Rae8 {[%clk 0:02:51]} 14. Rfe1 {[%clk 0:02:24]}  Nf4 {[%clk 0:02:18]} 15. Bg3 {[%clk 0:02:04]}  Ng6 {[%clk 0:02:06]} 16. Rad1 {[%clk 0:01:56]}  Bxg3 {[%clk 0:02:02]} 17. hxg3 {[%clk 0:01:44]}  Qc7 {[%clk 0:01:48]} 18. g4 {[%clk 0:01:34]}  Bc2 {[%clk 0:01:41]} 19. Rc1 {[%clk 0:01:34]}  Ba4 {[%clk 0:01:41]} 20. g3 {[%clk 0:01:17]}  e5 {[%clk 0:01:29]} 21. b3 {[%clk 0:01:09]}  Bb5 {[%clk 0:01:29]} 22. Bxb5 {[%clk 0:01:09]}  cxb5 {[%clk 0:01:30]} 23. d5 {[%clk 0:01:05]}  Qd7 {[%clk 0:01:23]} 24. c4 {[%clk 0:01:04]}  f5 {[%clk 0:01:15]} 25. gxf5 {[%clk 0:00:58]}  Rxf5 {[%clk 0:01:13]} 26. Qg4 {[%clk 0:00:55]}  Kh7 {[%clk 0:01:06]} 27. Ne4 {[%clk 0:00:49]}  Ref8 {[%clk 0:01:02]} 28. Nc5 {[%clk 0:00:40]}  Qe7 {[%clk 0:00:53]} 29. Ne6 {[%clk 0:00:36]}  R8f6 {[%clk 0:00:53]} 30. f4 {[%clk 0:00:15]}  exf4 {[%clk 0:00:33]} 31. Ng5+ {[%clk 0:00:10]}  Rxg5 {[%clk 0:00:33]} 32. Rxe7 {[%clk 0:00:07]}  Rxg4 {[%clk 0:00:33]} 33. Rxb7 {[%clk 0:00:07]}  fxg3 {[%clk 0:00:28]} 34. c5 {[%clk 0:00:05]}  Nf4 {[%clk 0:00:28]} 35. d6 {[%clk 0:00:04]}  Ne2+ {[%clk 0:00:27]} 36. Kg2 {[%clk 0:00:04]}  Rf2+ {[%clk 0:00:21]} 37. Kh3 {[%clk 0:00:04]}  h5 {[%clk 0:00:19]} 38. Rh1 {[%clk 0:00:04]}  Nf4# {[%clk 0:00:19]} 0-1


[Site "https://www.chess.com"]

[Event "Titled Tuesday Blitz June 6 Late 2023"]
[White "OPQRC"]
[Black "Lalanne, Pablo"]
[BlackFideId "112151"]
[WhiteElo "2575"]
[BlackElo "2120"]
[Result "1-0"]
[Round "3"]
[TimeControl "180+2"]
[Date "2023.06.07"]
[WhiteClock "0:00:09"]
[BlackClock "0:00:14"]
[Board "106"]

1. e4 {[%clk 0:02:54]}  c5 {[%clk 0:02:59]} 2. Nf3 {[%clk 0:02:53]}  d6 {[%clk 0:02:59]} 3. d4 {[%clk 0:02:53]}  cxd4 {[%clk 0:03:00]} 4. Nxd4 {[%clk 0:02:54]}  Nf6 {[%clk 0:03:00]} 5. Nc3 {[%clk 0:02:54]}  Nc6 {[%clk 0:03:01]} 6. Bg5 {[%clk 0:02:54]}  e6 {[%clk 0:03:01]} 7. Qd2 {[%clk 0:02:54]}  Be7 {[%clk 0:03:00]} 8. O-O-O {[%clk 0:02:50]}  O-O {[%clk 0:03:00]} 9. Nxc6 {[%clk 0:02:39]}  bxc6 {[%clk 0:03:00]} 10. Bxf6 {[%clk 0:02:39]}  gxf6 {[%clk 0:02:49]} 11. f4 {[%clk 0:02:35]}  Rb8 {[%clk 0:02:43]} 12. Bc4 {[%clk 0:02:34]}  Qb6 {[%clk 0:02:34]} 13. Bb3 {[%clk 0:02:34]}  c5 {[%clk 0:02:25]} 14. Na4 {[%clk 0:02:24]}  Qb5 {[%clk 0:02:16]} 15. c4 {[%clk 0:02:20]}  Qc6 {[%clk 0:02:14]} 16. Rhe1 {[%clk 0:02:15]}  Ba6 {[%clk 0:01:59]} 17. Qc2 {[%clk 0:02:07]}  Rb4 {[%clk 0:01:53]} 18. a3 {[%clk 0:02:03]}  Rb7 {[%clk 0:01:47]} 19. Rd3 {[%clk 0:01:58]}  Rfb8 {[%clk 0:01:46]} 20. Rg3+ {[%clk 0:01:56]}  Kf8 {[%clk 0:01:45]} 21. Ba2 {[%clk 0:01:12]}  Rc7 {[%clk 0:01:12]} 22. Rh3 {[%clk 0:01:03]}  Bc8 {[%clk 0:00:40]} 23. Rxh7 {[%clk 0:00:56]}  Ke8 {[%clk 0:00:40]} 24. h4 {[%clk 0:00:51]}  Bd7 {[%clk 0:00:40]} 25. Nc3 {[%clk 0:00:45]}  Rcb7 {[%clk 0:00:39]} 26. b3 {[%clk 0:00:37]}  Qb6 {[%clk 0:00:14]} 27. h5 {[%clk 0:00:29]}  Qa5 {[%clk 0:00:14]} 28. a4 {[%clk 0:00:30]}  Bxa4 {[%clk 0:00:08]} 29. bxa4 {[%clk 0:00:25]}  Rb2 {[%clk 0:00:05]} 30. Qxb2 {[%clk 0:00:22]}  Rxb2 {[%clk 0:00:06]} 31. Kxb2 {[%clk 0:00:23]}  Qb4+ {[%clk 0:00:06]} 32. Bb3 {[%clk 0:00:22]}  f5 {[%clk 0:00:06]} 33. exf5 {[%clk 0:00:08]}  Bf6 {[%clk 0:00:06]} 34. Re3 {[%clk 0:00:08]}  Bd4 {[%clk 0:00:06]} 35. Rd3 {[%clk 0:00:06]}  e5 {[%clk 0:00:05]} 36. fxe5 {[%clk 0:00:05]}  dxe5 {[%clk 0:00:06]} 37. h6 {[%clk 0:00:05]}  e4 {[%clk 0:00:06]} 38. Rxd4 {[%clk 0:00:03]}  cxd4 {[%clk 0:00:06]} 39. Nxe4 {[%clk 0:00:03]}  d3 {[%clk 0:00:07]} 40. Rh8+ {[%clk 0:00:02]}  Ke7 {[%clk 0:00:07]} 41. h7 {[%clk 0:00:03]}  d2 {[%clk 0:00:06]} 42. Re8+ {[%clk 0:00:03]}  Kd7 {[%clk 0:00:05]} 43. Rd8+ {[%clk 0:00:01]}  Kxd8 {[%clk 0:00:05]} 44. h8=Q+ {[%clk 0:00:02]}  Kd7 {[%clk 0:00:06]} 45. Qd4+ {[%clk 0:00:02]}  Kc7 {[%clk 0:00:06]} 46. Qxd2 {[%clk 0:00:03]}  Qxd2+ {[%clk 0:00:06]} 47. Nxd2 {[%clk 0:00:03]}  Kd6 {[%clk 0:00:07]} 48. Kc3 {[%clk 0:00:04]}  Ke5 {[%clk 0:00:08]} 49. c5 {[%clk 0:00:04]}  Kf4 {[%clk 0:00:09]} 50. Bxf7 {[%clk 0:00:03]}  Kg3 {[%clk 0:00:10]} 51. c6 {[%clk 0:00:04]}  a5 {[%clk 0:00:10]} 52. c7 {[%clk 0:00:04]}  Kxg2 {[%clk 0:00:10]} 53. c8=Q {[%clk 0:00:05]}  Kf2 {[%clk 0:00:11]} 54. Qa6 {[%clk 0:00:06]}  Kg3 {[%clk 0:00:12]} 55. Qxa5 {[%clk 0:00:07]}  Kg2 {[%clk 0:00:13]} 56. Qb5 {[%clk 0:00:08]}  Kf2 {[%clk 0:00:14]} 57. a5 {[%clk 0:00:09]} 1-0


[Site "https://www.chess.com"]